[Event "Titled Tuesday Blitz September 27 Late 2022"]
[White "Musovic, Armin"]
[Black "Fawzy, Adham"]
[WhiteFideId "939935"]
[BlackFideId "10613129"]
[WhiteElo "2255"]
[BlackElo "2541"]
[Result "1/2-1/2"]
[Round "01"]
[TimeControl "180+1"]
[Date "2022.09.28"]
[WhiteClock "0:00:12"]
[BlackClock "0:00:14"]

1. a3 {[%clk 0:02:57]}  c5 {[%clk 0:02:59]} 2. Nc3 {[%clk 0:02:57]}  Nc6 {[%clk 0:02:59]} 3. e4 {[%clk 0:02:58]}  g6 {[%clk 0:02:59]} 4. Bc4 {[%clk 0:02:58]}  Bg7 {[%clk 0:03:00]} 5. d3 {[%clk 0:02:59]}  d6 {[%clk 0:02:57]} 6. Nge2 {[%clk 0:02:57]}  e5 {[%clk 0:02:53]} 7. f4 {[%clk 0:02:51]}  Nge7 {[%clk 0:02:53]} 8. O-O {[%clk 0:02:48]}  O-O {[%clk 0:02:53]} 9. h3 {[%clk 0:02:48]}  Be6 {[%clk 0:02:53]} 10. Ng3 {[%clk 0:02:43]}  exf4 {[%clk 0:02:52]} 11. Bxf4 {[%clk 0:02:43]}  d5 {[%clk 0:02:53]} 12. Ba2 {[%clk 0:02:40]}  d4 {[%clk 0:02:40]} 13. Nb1 {[%clk 0:02:23]}  Bxa2 {[%clk 0:02:29]} 14. Rxa2 {[%clk 0:02:24]}  b5 {[%clk 0:02:29]} 15. Nd2 {[%clk 0:02:20]}  Qd7 {[%clk 0:02:17]} 16. Nf3 {[%clk 0:02:10]}  c4 {[%clk 0:02:15]} 17. Ra1 {[%clk 0:02:05]}  h6 {[%clk 0:02:15]} 18. e5 {[%clk 0:01:26]}  Nd5 {[%clk 0:02:09]} 19. Qc1 {[%clk 0:01:10]}  Nxf4 {[%clk 0:01:31]} 20. Qxf4 {[%clk 0:01:11]}  Qd5 {[%clk 0:01:32]} 21. Rae1 {[%clk 0:01:07]}  Rae8 {[%clk 0:01:31]} 22. Re4 {[%clk 0:00:52]}  Nxe5 {[%clk 0:01:25]} 23. Rfe1 {[%clk 0:00:36]}  Nxf3+ {[%clk 0:01:18]} 24. Qxf3 {[%clk 0:00:30]}  Rxe4 {[%clk 0:01:06]} 25. Rxe4 {[%clk 0:00:31]}  f5 {[%clk 0:01:00]} 26. Re7 {[%clk 0:00:27]}  Qxf3 {[%clk 0:00:56]} 27. gxf3 {[%clk 0:00:28]}  Rf7 {[%clk 0:00:56]} 28. Re8+ {[%clk 0:00:26]}  Kh7 {[%clk 0:00:56]} 29. Rc8 {[%clk 0:00:22]}  Be5 {[%clk 0:00:29]} 30. Ne2 {[%clk 0:00:22]}  Rc7 {[%clk 0:00:30]} 31. Rxc7+ {[%clk 0:00:21]}  Bxc7 {[%clk 0:00:30]} 32. Kf1 {[%clk 0:00:20]}  Be5 {[%clk 0:00:29]} 33. f4 {[%clk 0:00:19]}  Bf6 {[%clk 0:00:30]} 34. Kg2 {[%clk 0:00:20]}  Kg7 {[%clk 0:00:30]} 35. Kf3 {[%clk 0:00:21]}  Kf7 {[%clk 0:00:31]} 36. b3 {[%clk 0:00:18]}  c3 {[%clk 0:00:20]} 37. b4 {[%clk 0:00:15]}  Ke6 {[%clk 0:00:20]} 38. Nc1 {[%clk 0:00:15]}  Kd5 {[%clk 0:00:20]} 39. Nb3 {[%clk 0:00:14]}  Bd8 {[%clk 0:00:19]} 40. Nc5 {[%clk 0:00:12]}  Bb6 {[%clk 0:00:19]} 41. Nb3 {[%clk 0:00:10]}  Bc7 {[%clk 0:00:18]} 42. h4 {[%clk 0:00:09]}  Bd8 {[%clk 0:00:17]} 43. Kg3 {[%clk 0:00:10]}  Be7 {[%clk 0:00:17]} 44. Kh3 {[%clk 0:00:09]}  Bd6 {[%clk 0:00:15]} 45. h5 {[%clk 0:00:04]}  gxh5 {[%clk 0:00:16]} 46. Kg3 {[%clk 0:00:04]}  h4+ {[%clk 0:00:17]} 47. Kf3 {[%clk 0:00:03]}  h3 {[%clk 0:00:18]} 48. Kg3 {[%clk 0:00:04]}  Bxf4+ {[%clk 0:00:17]} 49. Kxh3 {[%clk 0:00:04]}  Bd6 {[%clk 0:00:16]} 50. Nc1 {[%clk 0:00:04]}  a5 {[%clk 0:00:16]} 51. bxa5 {[%clk 0:00:04]}  Bxa3 {[%clk 0:00:16]} 52. a6 {[%clk 0:00:04]}  Bc5 {[%clk 0:00:16]} 53. Nb3 {[%clk 0:00:03]}  Bb6 {[%clk 0:00:16]} 54. Nc1 {[%clk 0:00:03]}  b4 {[%clk 0:00:14]} 55. Nb3 {[%clk 0:00:03]}  Kc6 {[%clk 0:00:14]} 56. Kg3 {[%clk 0:00:03]}  Kb5 {[%clk 0:00:12]} 57. Kf4 {[%clk 0:00:04]}  Kxa6 {[%clk 0:00:07]} 58. Kxf5 {[%clk 0:00:04]}  Kb5 {[%clk 0:00:07]} 59. Kg6 {[%clk 0:00:05]}  Kc6 {[%clk 0:00:06]} 60. Kxh6 {[%clk 0:00:05]}  Kd5 {[%clk 0:00:06]} 61. Kg5 {[%clk 0:00:06]}  Ke5 {[%clk 0:00:07]} 62. Kg4 {[%clk 0:00:07]}  Bd8 {[%clk 0:00:07]} 63. Kf3 {[%clk 0:00:07]}  Bf6 {[%clk 0:00:07]} 64. Nc5 {[%clk 0:00:07]}  Kf5 {[%clk 0:00:07]} 65. Nb3 {[%clk 0:00:07]}  Bg5 {[%clk 0:00:07]} 66. Nc5 {[%clk 0:00:07]}  Bf6 {[%clk 0:00:07]} 67. Nb3 {[%clk 0:00:07]}  Be5 {[%clk 0:00:08]} 68. Na5 {[%clk 0:00:07]}  Bd6 {[%clk 0:00:08]} 69. Nb3 {[%clk 0:00:07]}  Be5 {[%clk 0:00:08]} 70. Nc5 {[%clk 0:00:07]}  Bc7 {[%clk 0:00:08]} 71. Nb3 {[%clk 0:00:07]}  Bb6 {[%clk 0:00:08]} 72. Nc1 {[%clk 0:00:08]}  Ke5 {[%clk 0:00:06]} 73. Nb3 {[%clk 0:00:07]}  Bd8 {[%clk 0:00:06]} 74. Nc5 {[%clk 0:00:06]}  Bg5 {[%clk 0:00:06]} 75. Nb3 {[%clk 0:00:03]}  Be3 {[%clk 0:00:07]} 76. Na5 {[%clk 0:00:03]}  Kf5 {[%clk 0:00:06]} 77. Nb3 {[%clk 0:00:03]}  Kg5 {[%clk 0:00:06]} 78. Nc5 {[%clk 0:00:04]}  Kh4 {[%clk 0:00:06]} 79. Nb3 {[%clk 0:00:04]}  Kh3 {[%clk 0:00:07]} 80. Nc5 {[%clk 0:00:05]}  Kh2 {[%clk 0:00:07]} 81. Nb3 {[%clk 0:00:04]}  Kg1 {[%clk 0:00:08]} 82. Ke2 {[%clk 0:00:04]}  Kg2 {[%clk 0:00:08]} 83. Nc5 {[%clk 0:00:05]}  Kg3 {[%clk 0:00:08]} 84. Nb3 {[%clk 0:00:05]}  Kg4 {[%clk 0:00:09]} 85. Nc5 {[%clk 0:00:06]}  Kf4 {[%clk 0:00:10]} 86. Nb3 {[%clk 0:00:07]}  Kf5 {[%clk 0:00:10]} 87. Na5 {[%clk 0:00:06]}  Ke5 {[%clk 0:00:11]} 88. Kd1 {[%clk 0:00:06]}  Kd5 {[%clk 0:00:11]} 89. Nb3 {[%clk 0:00:07]}  Kc6 {[%clk 0:00:11]} 90. Na5+ {[%clk 0:00:07]}  Kb5 {[%clk 0:00:12]} 91. Nb3 {[%clk 0:00:07]}  Ka4 {[%clk 0:00:13]} 92. Ke2 {[%clk 0:00:08]}  Ka3 {[%clk 0:00:13]} 93. Kd1 {[%clk 0:00:08]}  Kb2 {[%clk 0:00:13]} 94. Nc5 {[%clk 0:00:08]}  Ka2 {[%clk 0:00:12]} 95. Nb3 {[%clk 0:00:08]}  Bf2 {[%clk 0:00:13]} 96. Nc5 {[%clk 0:00:09]}  Bg3 {[%clk 0:00:13]} 97. Nb3 {[%clk 0:00:09]}  Be5 {[%clk 0:00:14]} 98. Na5 {[%clk 0:00:09]}  Bc7 {[%clk 0:00:14]} 99. Nb3 {[%clk 0:00:10]}  Bb6 {[%clk 0:00:14]} 100. Kc1 {[%clk 0:00:11]}  Ka3 {[%clk 0:00:13]} 101. Kb1 {[%clk 0:00:11]}  Ba7 {[%clk 0:00:12]} 102. Na5 {[%clk 0:00:10]}  Bb8 {[%clk 0:00:13]} 103. Nb3 {[%clk 0:00:11]}  Be5 {[%clk 0:00:13]} 104. Nc5 {[%clk 0:00:11]}  Bf4 {[%clk 0:00:13]} 105. Nb3 {[%clk 0:00:11]}  Be3 {[%clk 0:00:13]} 106. Ka1 {[%clk 0:00:11]}  Bf2 {[%clk 0:00:11]} 107. Kb1 {[%clk 0:00:11]}  Ka4 {[%clk 0:00:12]} 108. Ka2 {[%clk 0:00:12]}  Kb5 {[%clk 0:00:13]} 109. Nc1 {[%clk 0:00:11]}  Kc6 {[%clk 0:00:14]} 110. Kb3 {[%clk 0:00:12]} 1/2-1/2


[Site "https://www.chess.com"]

[Event "Titled Tuesday Blitz September 27 Late 2022"]
[White "Nakamura, Hikaru"]
[Black "Cruz Mendez, Jean Marco"]
[WhiteFideId "2016192"]
[BlackFideId "3526402"]
[WhiteElo "2850"]
[BlackElo "2064"]
[Result "1-0"]
[Round "01"]
[TimeControl "180+1"]
[Date "2022.09.27"]
[WhiteClock "0:02:22"]
[BlackClock "0:00:44"]

1. Nf3 {[%clk 0:03:00]}  Nf6 {[%clk 0:02:59]} 2. g3 {[%clk 0:03:01]}  d5 {[%clk 0:02:59]} 3. Bg2 {[%clk 0:03:01]}  e6 {[%clk 0:03:00]} 4. O-O {[%clk 0:03:01]}  Be7 {[%clk 0:03:01]} 5. d3 {[%clk 0:03:01]}  O-O {[%clk 0:03:01]} 6. Nbd2 {[%clk 0:03:02]}  c5 {[%clk 0:02:59]} 7. e4 {[%clk 0:03:02]}  Nc6 {[%clk 0:03:00]} 8. Re1 {[%clk 0:03:02]}  Qc7 {[%clk 0:02:56]} 9. e5 {[%clk 0:03:00]}  Nd7 {[%clk 0:02:56]} 10. Qe2 {[%clk 0:03:00]}  b5 {[%clk 0:02:55]} 11. Nf1 {[%clk 0:03:00]}  b4 {[%clk 0:02:55]} 12. h4 {[%clk 0:03:00]}  a5 {[%clk 0:02:55]} 13. h5 {[%clk 0:03:00]}  h6 {[%clk 0:02:55]} 14. N1h2 {[%clk 0:03:01]}  Re8 {[%clk 0:02:37]} 15. Ng4 {[%clk 0:02:57]}  Bf8 {[%clk 0:02:37]} 16. Bf4 {[%clk 0:02:57]}  Nd4 {[%clk 0:02:29]} 17. Qd2 {[%clk 0:02:53]}  Nf5 {[%clk 0:02:08]} 18. Ngh2 {[%clk 0:02:53]}  Qd8 {[%clk 0:01:41]} 19. g4 {[%clk 0:02:51]}  Nh4 {[%clk 0:01:40]} 20. Nxh4 {[%clk 0:02:42]}  Qxh4 {[%clk 0:01:41]} 21. Re3 {[%clk 0:02:40]}  Qe7 {[%clk 0:01:15]} 22. Rae1 {[%clk 0:02:38]}  Rb8 {[%clk 0:01:08]} 23. Rg3 {[%clk 0:02:35]}  c4 {[%clk 0:00:52]} 24. g5 {[%clk 0:02:34]}  hxg5 {[%clk 0:00:52]} 25. Bxg5 {[%clk 0:02:34]}  Qc5 {[%clk 0:00:52]} 26. d4 {[%clk 0:02:31]}  Qb6 {[%clk 0:00:51]} 27. Qf4 {[%clk 0:02:28]}  c3 {[%clk 0:00:48]} 28. b3 {[%clk 0:02:28]}  a4 {[%clk 0:00:47]} 29. h6 {[%clk 0:02:25]}  g6 {[%clk 0:00:44]} 30. h7+ {[%clk 0:02:22]} 1-0


[Site "https://www.chess.com"]

[Event "Titled Tuesday Blitz September 27 Late 2022"]
[White "Oye-Stromberg, Alexander"]
[Black "Harvey, Marcus R"]
[WhiteFideId "1525999"]
[BlackFideId "400092"]
[WhiteElo "1981"]
[BlackElo "2485"]
[Result "0-1"]
[Round "01"]
[TimeControl "180+1"]
[Date "2022.09.28"]
[WhiteClock "0:00:23"]
[BlackClock "0:00:10"]

1. d4 {[%clk 0:02:59]}  Nf6 {[%clk 0:02:58]} 2. c4 {[%clk 0:02:59]}  e6 {[%clk 0:02:55]} 3. Nc3 {[%clk 0:02:57]}  Bb4 {[%clk 0:02:52]} 4. Qc2 {[%clk 0:02:57]}  O-O {[%clk 0:02:44]} 5. a3 {[%clk 0:02:56]}  Bxc3+ {[%clk 0:02:44]} 6. Qxc3 {[%clk 0:02:57]}  b6 {[%clk 0:02:39]} 7. Bg5 {[%clk 0:02:54]}  Bb7 {[%clk 0:02:36]} 8. f3 {[%clk 0:02:54]}  h6 {[%clk 0:02:33]} 9. Bh4 {[%clk 0:02:54]}  c5 {[%clk 0:02:31]} 10. dxc5 {[%clk 0:02:24]}  bxc5 {[%clk 0:02:31]} 11. Bxf6 {[%clk 0:02:15]}  Qxf6 {[%clk 0:02:29]} 12. Qxf6 {[%clk 0:02:15]}  gxf6 {[%clk 0:02:30]} 13. e4 {[%clk 0:02:14]}  Nc6 {[%clk 0:02:29]} 14. O-O-O {[%clk 0:02:13]}  Nd4 {[%clk 0:02:18]} 15. Ne2 {[%clk 0:02:12]}  e5 {[%clk 0:02:18]} 16. Nxd4 {[%clk 0:02:05]}  exd4 {[%clk 0:02:03]} 17. Bd3 {[%clk 0:02:02]}  a5 {[%clk 0:02:01]} 18. a4 {[%clk 0:01:36]}  Bc6 {[%clk 0:02:01]} 19. b3 {[%clk 0:01:36]}  Rab8 {[%clk 0:02:00]} 20. Bc2 {[%clk 0:01:36]}  Rfe8 {[%clk 0:01:52]} 21. Kd2 {[%clk 0:01:36]}  h5 {[%clk 0:01:26]} 22. Rde1 {[%clk 0:01:32]}  Kg7 {[%clk 0:01:21]} 23. Rhg1 {[%clk 0:01:27]}  Kh6 {[%clk 0:01:19]} 24. g4 {[%clk 0:01:16]}  h4 {[%clk 0:00:58]} 25. f4 {[%clk 0:01:14]}  Rg8 {[%clk 0:00:57]} 26. h3 {[%clk 0:01:13]}  Rbe8 {[%clk 0:00:54]} 27. Bd3 {[%clk 0:01:08]}  d6 {[%clk 0:00:53]} 28. Re2 {[%clk 0:01:04]}  Re7 {[%clk 0:00:34]} 29. Rge1 {[%clk 0:01:04]}  Rge8 {[%clk 0:00:31]} 30. Bc2 {[%clk 0:01:03]}  Kg7 {[%clk 0:00:29]} 31. Bd3 {[%clk 0:01:01]}  Rg8 {[%clk 0:00:24]} 32. e5 {[%clk 0:00:55]}  dxe5 {[%clk 0:00:23]} 33. fxe5 {[%clk 0:00:56]}  Ree8 {[%clk 0:00:15]} 34. exf6+ {[%clk 0:00:55]}  Kxf6 {[%clk 0:00:15]} 35. Rf1+ {[%clk 0:00:51]}  Kg7 {[%clk 0:00:12]} 36. Rf5 {[%clk 0:00:51]}  Rxe2+ {[%clk 0:00:11]} 37. Bxe2 {[%clk 0:00:52]}  Bg2 {[%clk 0:00:09]} 38. Rxc5 {[%clk 0:00:45]}  Bxh3 {[%clk 0:00:07]} 39. Rh5 {[%clk 0:00:45]}  Rh8 {[%clk 0:00:07]} 40. Rxh8 {[%clk 0:00:44]}  Kxh8 {[%clk 0:00:07]} 41. Bf3 {[%clk 0:00:36]}  f5 {[%clk 0:00:08]} 42. gxf5 {[%clk 0:00:32]}  Bxf5 {[%clk 0:00:07]} 43. c5 {[%clk 0:00:33]}  Kg7 {[%clk 0:00:08]} 44. c6 {[%clk 0:00:29]}  Kf6 {[%clk 0:00:07]} 45. c7 {[%clk 0:00:29]}  Bc8 {[%clk 0:00:07]} 46. Kd3 {[%clk 0:00:28]}  Ke5 {[%clk 0:00:08]} 47. Bg2 {[%clk 0:00:25]}  h3 {[%clk 0:00:08]} 48. Bh1 {[%clk 0:00:25]}  h2 {[%clk 0:00:08]} 49. Kd2 {[%clk 0:00:23]}  Kd6 {[%clk 0:00:08]} 50. Kd3 {[%clk 0:00:23]}  Kxc7 {[%clk 0:00:09]} 51. Kxd4 {[%clk 0:00:23]}  Bb7 {[%clk 0:00:10]} 0-1


[Site "https://www.chess.com"]

[Event "Titled Tuesday Blitz September 27 Late 2022"]
[White "Ozalp, Burak"]
[Black "Perez Ponsa, Federico"]
[WhiteFideId "6314210"]
[BlackFideId "117927"]
[WhiteElo "1854"]
[BlackElo "2604"]
[Result "1/2-1/2"]
[Round "01"]
[TimeControl "180+1"]
[Date "2022.09.28"]
[WhiteClock "0:00:07"]
[BlackClock "0:00:17"]

1. e4 {[%clk 0:02:59]}  c6 {[%clk 0:02:50]} 2. d4 {[%clk 0:02:52]}  d5 {[%clk 0:02:51]} 3. Nc3 {[%clk 0:02:52]}  dxe4 {[%clk 0:02:51]} 4. Nxe4 {[%clk 0:02:52]}  Nf6 {[%clk 0:02:52]} 5. Nxf6+ {[%clk 0:02:51]}  exf6 {[%clk 0:02:53]} 6. Nf3 {[%clk 0:02:51]}  Bd6 {[%clk 0:02:53]} 7. Bd3 {[%clk 0:02:43]}  O-O {[%clk 0:02:51]} 8. Be3 {[%clk 0:02:43]}  Bg4 {[%clk 0:02:49]} 9. h3 {[%clk 0:02:34]}  Bh5 {[%clk 0:02:49]} 10. g4 {[%clk 0:02:33]}  Bg6 {[%clk 0:02:49]} 11. Qd2 {[%clk 0:02:29]}  Nd7 {[%clk 0:02:48]} 12. O-O-O {[%clk 0:02:29]}  b5 {[%clk 0:02:36]} 13. Kb1 {[%clk 0:02:28]}  Nb6 {[%clk 0:02:34]} 14. h4 {[%clk 0:02:25]}  Nc4 {[%clk 0:02:30]} 15. Qc1 {[%clk 0:02:07]}  Re8 {[%clk 0:02:25]} 16. h5 {[%clk 0:02:07]}  Be4 {[%clk 0:02:25]} 17. Bxe4 {[%clk 0:01:56]}  Rxe4 {[%clk 0:02:26]} 18. Nd2 {[%clk 0:01:40]}  Nxd2+ {[%clk 0:02:14]} 19. Qxd2 {[%clk 0:01:38]}  Rxg4 {[%clk 0:02:15]} 20. d5 {[%clk 0:01:30]}  c5 {[%clk 0:02:12]} 21. Rdg1 {[%clk 0:01:15]}  Qd7 {[%clk 0:02:11]} 22. Qe2 {[%clk 0:00:44]}  Rxg1+ {[%clk 0:02:09]} 23. Rxg1 {[%clk 0:00:45]}  Re8 {[%clk 0:02:08]} 24. h6 {[%clk 0:00:41]}  g6 {[%clk 0:02:08]} 25. Qf3 {[%clk 0:00:41]}  f5 {[%clk 0:02:04]} 26. a3 {[%clk 0:00:40]}  Bf8 {[%clk 0:02:01]} 27. d6 {[%clk 0:00:34]}  Bxd6 {[%clk 0:01:54]} 28. Rd1 {[%clk 0:00:30]}  Qc7 {[%clk 0:01:50]} 29. Qd5 {[%clk 0:00:29]}  Bf8 {[%clk 0:01:49]} 30. Qd7 {[%clk 0:00:20]}  Qxd7 {[%clk 0:01:48]} 31. Rxd7 {[%clk 0:00:21]}  a5 {[%clk 0:01:47]} 32. Ra7 {[%clk 0:00:16]}  a4 {[%clk 0:01:40]} 33. Rb7 {[%clk 0:00:16]}  b4 {[%clk 0:01:40]} 34. Ra7 {[%clk 0:00:15]}  Bd6 {[%clk 0:01:32]} 35. axb4 {[%clk 0:00:12]}  cxb4 {[%clk 0:01:30]} 36. Rxa4 {[%clk 0:00:12]}  f6 {[%clk 0:01:28]} 37. Ra7 {[%clk 0:00:11]}  f4 {[%clk 0:01:23]} 38. Bd4 {[%clk 0:00:11]}  Bf8 {[%clk 0:01:20]} 39. Rb7 {[%clk 0:00:09]}  Re4 {[%clk 0:01:17]} 40. Bxf6 {[%clk 0:00:09]}  Bxh6 {[%clk 0:01:15]} 41. c3 {[%clk 0:00:05]}  bxc3 {[%clk 0:01:14]} 42. Bxc3 {[%clk 0:00:05]}  Bf8 {[%clk 0:01:13]} 43. Kc2 {[%clk 0:00:05]}  g5 {[%clk 0:01:13]} 44. Kd3 {[%clk 0:00:06]}  Re6 {[%clk 0:01:13]} 45. b4 {[%clk 0:00:06]}  g4 {[%clk 0:01:12]} 46. b5 {[%clk 0:00:06]}  g3 {[%clk 0:01:13]} 47. fxg3 {[%clk 0:00:07]}  fxg3 {[%clk 0:01:14]} 48. Bd4 {[%clk 0:00:07]}  g2 {[%clk 0:01:14]} 49. Ra7 {[%clk 0:00:07]}  Rd6 {[%clk 0:01:05]} 50. Ra1 {[%clk 0:00:06]}  Bg7 {[%clk 0:00:57]} 51. Ra8+ {[%clk 0:00:05]}  Kf7 {[%clk 0:00:55]} 52. Ra7+ {[%clk 0:00:06]}  Kf8 {[%clk 0:00:52]} 53. Ra8+ {[%clk 0:00:05]}  Ke7 {[%clk 0:00:32]} 54. Ra7+ {[%clk 0:00:05]}  Rd7 {[%clk 0:00:32]} 55. Rxd7+ {[%clk 0:00:05]}  Kxd7 {[%clk 0:00:33]} 56. Bg1 {[%clk 0:00:05]}  h5 {[%clk 0:00:31]} 57. Ke4 {[%clk 0:00:06]}  h4 {[%clk 0:00:27]} 58. Kf3 {[%clk 0:00:06]}  h3 {[%clk 0:00:25]} 59. Kg3 {[%clk 0:00:06]}  Bc3 {[%clk 0:00:15]} 60. Kxh3 {[%clk 0:00:06]}  Ba5 {[%clk 0:00:16]} 61. Kxg2 {[%clk 0:00:07]}  Kd6 {[%clk 0:00:17]} 62. b6 {[%clk 0:00:07]}  Bxb6 {[%clk 0:00:17]} 1/2-1/2


[Site "https://www.chess.com"]

[Event "Titled Tuesday Blitz September 27 Late 2022"]
[White "Pacheco Lugo, Alejandro Jose"]
[Black "Leiva, Gianmarco"]
[WhiteFideId "3903745"]
[BlackFideId "3804399"]
[WhiteElo "2146"]
[BlackElo "2323"]
[Result "0-1"]
[Round "01"]
[TimeControl "180+1"]
[Date "2022.09.28"]
[WhiteClock "0:00:07"]
[BlackClock "0:00:23"]

1. e4 {[%clk 0:03:00]}  c5 {[%clk 0:02:34]} 2. Nf3 {[%clk 0:03:00]}  d6 {[%clk 0:02:34]} 3. d4 {[%clk 0:03:00]}  cxd4 {[%clk 0:02:34]} 4. Nxd4 {[%clk 0:03:01]}  Nf6 {[%clk 0:02:35]} 5. Nc3 {[%clk 0:03:01]}  a6 {[%clk 0:02:35]} 6. Be3 {[%clk 0:03:01]}  e6 {[%clk 0:02:28]} 7. g4 {[%clk 0:03:00]}  Be7 {[%clk 0:02:29]} 8. g5 {[%clk 0:03:00]}  Nfd7 {[%clk 0:02:29]} 9. h4 {[%clk 0:03:01]}  Qc7 {[%clk 0:02:30]} 10. Qd2 {[%clk 0:03:00]}  Ne5 {[%clk 0:02:30]} 11. f4 {[%clk 0:02:58]}  Nc4 {[%clk 0:02:30]} 12. Bxc4 {[%clk 0:02:58]}  Qxc4 {[%clk 0:02:31]} 13. O-O-O {[%clk 0:02:58]}  Nc6 {[%clk 0:02:32]} 14. h5 {[%clk 0:02:32]}  Bd7 {[%clk 0:02:31]} 15. Kb1 {[%clk 0:02:33]}  O-O-O {[%clk 0:02:24]} 16. b3 {[%clk 0:02:24]}  Qb4 {[%clk 0:02:22]} 17. Nxc6 {[%clk 0:02:11]}  Bxc6 {[%clk 0:02:22]} 18. Nd5 {[%clk 0:02:05]}  Qxd2 {[%clk 0:02:23]} 19. Nxe7+ {[%clk 0:02:05]}  Kd7 {[%clk 0:02:24]} 20. Bxd2 {[%clk 0:01:56]}  Kxe7 {[%clk 0:02:24]} 21. Rhe1 {[%clk 0:01:56]}  h6 {[%clk 0:02:16]} 22. Bc3 {[%clk 0:01:42]}  hxg5 {[%clk 0:02:16]} 23. fxg5 {[%clk 0:01:33]}  Rxh5 {[%clk 0:02:17]} 24. Rg1 {[%clk 0:01:21]}  Bxe4 {[%clk 0:02:17]} 25. Bxg7 {[%clk 0:01:21]}  Rc8 {[%clk 0:02:17]} 26. Bf6+ {[%clk 0:01:21]}  Kd7 {[%clk 0:02:17]} 27. Rd2 {[%clk 0:01:21]}  Rh3 {[%clk 0:02:11]} 28. Kb2 {[%clk 0:01:21]}  b5 {[%clk 0:02:07]} 29. Re1 {[%clk 0:01:20]}  Bg6 {[%clk 0:02:05]} 30. Rc1 {[%clk 0:01:12]}  Rc5 {[%clk 0:01:55]} 31. c4 {[%clk 0:01:10]}  bxc4 {[%clk 0:01:54]} 32. Rxc4 {[%clk 0:01:10]}  Rxc4 {[%clk 0:01:54]} 33. bxc4 {[%clk 0:01:11]}  Kc6 {[%clk 0:01:50]} 34. Be7 {[%clk 0:01:09]}  Bd3 {[%clk 0:01:45]} 35. Kc3 {[%clk 0:01:07]}  Bf5+ {[%clk 0:01:31]} 36. Kb4 {[%clk 0:01:05]}  d5 {[%clk 0:01:27]} 37. cxd5+ {[%clk 0:01:06]}  exd5 {[%clk 0:01:28]} 38. a4 {[%clk 0:00:59]}  Re3 {[%clk 0:01:22]} 39. Bf6 {[%clk 0:00:58]}  Re8 {[%clk 0:01:21]} 40. Ka5 {[%clk 0:00:53]}  Kc5 {[%clk 0:01:17]} 41. Rd4 {[%clk 0:00:42]}  Re6 {[%clk 0:01:14]} 42. Rf4 {[%clk 0:00:41]}  Be4 {[%clk 0:01:12]} 43. Bc3 {[%clk 0:00:35]}  Kc4 {[%clk 0:01:12]} 44. Bf6 {[%clk 0:00:20]}  d4 {[%clk 0:01:10]} 45. Rf2 {[%clk 0:00:19]}  Kd3 {[%clk 0:01:09]} 46. Kb4 {[%clk 0:00:17]}  Ke3 {[%clk 0:01:08]} 47. Rh2 {[%clk 0:00:14]}  d3 {[%clk 0:01:08]} 48. Bc3 {[%clk 0:00:12]}  Rb6+ {[%clk 0:01:07]} 49. Kc5 {[%clk 0:00:13]}  Rc6+ {[%clk 0:01:07]} 50. Kb4 {[%clk 0:00:13]}  Kf4 {[%clk 0:00:54]} 51. Bd2+ {[%clk 0:00:13]}  Kg3 {[%clk 0:00:55]} 52. Rh8 {[%clk 0:00:13]}  Rc2 {[%clk 0:00:55]} 53. Bc3 {[%clk 0:00:12]}  d2 {[%clk 0:00:55]} 54. Rd8 {[%clk 0:00:12]}  Kg4 {[%clk 0:00:35]} 55. Bxd2 {[%clk 0:00:12]}  Kf5 {[%clk 0:00:30]} 56. Ka5 {[%clk 0:00:12]}  Rc6 {[%clk 0:00:29]} 57. Rd4 {[%clk 0:00:09]}  Ke5 {[%clk 0:00:29]} 58. Rb4 {[%clk 0:00:08]}  Bd5 {[%clk 0:00:28]} 59. Rb6 {[%clk 0:00:08]}  Rc2 {[%clk 0:00:28]} 60. Bb4 {[%clk 0:00:06]}  Bc4 {[%clk 0:00:29]} 61. Be7 {[%clk 0:00:06]}  Kf5 {[%clk 0:00:28]} 62. Rb4 {[%clk 0:00:04]}  Ke6 {[%clk 0:00:27]} 63. Bf6 {[%clk 0:00:04]}  Kd5 {[%clk 0:00:28]} 64. Kb6 {[%clk 0:00:04]}  Ra2 {[%clk 0:00:27]} 65. a5 {[%clk 0:00:05]}  Re2 {[%clk 0:00:26]} 66. Rb2 {[%clk 0:00:05]}  Re6+ {[%clk 0:00:26]} 67. Kb7 {[%clk 0:00:05]}  Re8 {[%clk 0:00:23]} 68. Rb6 {[%clk 0:00:05]}  Kc5 {[%clk 0:00:21]} 69. Rc6+ {[%clk 0:00:04]}  Kd5 {[%clk 0:00:21]} 70. Rxa6 {[%clk 0:00:03]}  Bxa6+ {[%clk 0:00:20]} 71. Kxa6 {[%clk 0:00:04]}  Kc6 {[%clk 0:00:21]} 72. Ka7 {[%clk 0:00:04]}  Kb5 {[%clk 0:00:21]} 73. a6 {[%clk 0:00:04]}  Re6 {[%clk 0:00:21]} 74. Kb7 {[%clk 0:00:03]}  Rxa6 {[%clk 0:00:22]} 75. Kc7 {[%clk 0:00:04]}  Kc5 {[%clk 0:00:23]} 76. Kd7 {[%clk 0:00:05]}  Kd5 {[%clk 0:00:23]} 77. Ke7 {[%clk 0:00:06]}  Ra7+ {[%clk 0:00:24]} 78. Kf8 {[%clk 0:00:06]}  Ke6 {[%clk 0:00:25]} 79. Kg7 {[%clk 0:00:06]}  Kf5 {[%clk 0:00:25]} 80. Bd8 {[%clk 0:00:06]}  Rd7 {[%clk 0:00:26]} 81. Bf6 {[%clk 0:00:06]}  Rc7 {[%clk 0:00:24]} 82. Kf8 {[%clk 0:00:07]}  Kg6 {[%clk 0:00:25]} 83. Be7 {[%clk 0:00:07]}  Rc8+ {[%clk 0:00:23]} 0-1


[Site "https://www.chess.com"]